Cogmind - Beta 13 @@@ ROGUE MODE // 2024.04.12 @ 02:51:12 Player: Errormaker Result: Self-destructed Performance ------------- Evolutions (1) 500 Regions Visited (3) 600 Robots Destroyed (13) 65 Value Destroyed (409) 409 Prototype IDs (5) 100 Alien Tech Used (0) 0 Bonus (0) 0 TOTAL SCORE: 1674 Bonus ------- None Cogmind --------- Core Integrity 99/400 Matter 300/300 Energy 100/100 System Corruption 0% Temperature Cool (0) Movement Core (100) Ox1 Location -9/Mines Parts ------- > --- POWER (1) -------- (None) > --- PROPULSION (2) --- (None) > --- UTILITY (4) ------ Improved Heat Sink Small Storage Unit Signal Interpreter Targeting Computer > --- WEAPON (2) ------- (None) > --- INVENTORY (8) ---- Cooled Ion Engine Cooled Ion Engine Light Nuclear Core Faulty Advanced Beam Cannon Peak State ------------ > --- POWER ------------ Ion Engine > --- PROPULSION ------- Aluminum Leg Aluminum Leg > --- UTILITY ---------- Improved Heat Sink Small Storage Unit Signal Interpreter Targeting Computer > --- WEAPON ----------- EM Pulse Gun Light Assault Rifle > --- INVENTORY -------- Cooled Ion Engine Cooled Ion Engine Light Nuclear Core Light Nuclear Core Aluminum Leg Aluminum Leg Improved Heat Sink Advanced Beam Cannon [Rating: 13] Favorites ----------- Power Ion Engine Engine Ion Engine Power Core Light Nuclear Core Propulsion Aluminum Leg Leg Aluminum Leg Utility Small Storage Unit Device Improved Heat Sink Storage Small Storage Unit Processor Targeting Computer Weapon Light Assault Rifle Energy Gun EM Pulse Gun Energy Cannon Advanced Beam Cannon Ballistic Gun Light Assault Rifle Build | -11 -10 -9 -9 ------- Run | Yrd Mat Mat Min Slots Evolved 2 | . . 2 . Power . | . . . . Propulsion . | . . . . Utility 2 | . . 2 . Weapon . | . . . . Parts Attached 16 | 6 3 4 3 Power 2 | 1 . . 1 Engine 1 | 1 . . . Core 1 | . . . 1 Reactor . | . . . . Propulsion 4 | 2 1 . 1 Treads . | . . . . Leg 4 | 2 1 . 1 Wheel . | . . . . Hover . | . . . . Flight . | . . . . Utility 5 | 1 1 2 1 Device 2 | . . 1 1 Storage 1 | 1 . . . Processor 2 | . 1 1 . Hackware . | . . . . Protection . | . . . . Artifact . | . . . . Weapon 5 | 2 1 2 . Energy Gun 3 | 1 1 1 . Energy Cannon 1 | . . 1 . Ballistic Gun 1 | 1 . . . Ballistic Cannon . | . . . . Launcher . | . . . . Special Weapon . | . . . . Impact Weapon . | . . . . Slashing Weapon . | . . . . Piercing Weapon . | . . . . Special Melee Weapon . | . . . . Unidentified Prototypes 1 | . . 1 . Parts Lost 8 | . . 6 2 Power 2 | . . 1 1 Propulsion 3 | . . 2 1 Utility 1 | . . 1 . Weapon 2 | . . 2 . Highest Loss Streak 6 | . . 6 2 To Critical Strikes . | . . . . Average Slot Usage (%) 90 | . 91 95 62 Engine 11 | . 14 9 . Leg 23 | . 28 19 9 Device 4 | . . 10 11 Storage 12 | . 14 11 11 Processor 13 | . 7 22 22 Energy Gun 10 | . 13 9 . Ballistic Gun 11 | . 14 10 . Naked Turns . | . . . . Heaviest Build 14 | 13 13 14 11 Greatest Support 20 | 20 20 20 10 Greatest Overweight (x) 3 | 1 . 3 1 Average Overweight (x) . | . . . . Largest Inventory Capacity 8 | 8 8 8 8 Average Capacity 7 | 7 8 8 8 Most Carried 8 | 3 8 8 7 Average Carried 6 | 1 7 6 4 Final Capacity 8 | 8 8 8 8 Final Carried 8 | 3 8 6 4 Class Distribution -------------------- 100% | Mutant Dominant Class ---------------- Mutant | -10/Materials Mutant | -9/Materials Mutant | -9/Mines Resources | -11 -10 -9 -9 ----------- Run | Yrd Mat Mat Min Matter Collected 359 | 162 124 73 . Remotely . | . . . . Salvage Created 549 | . 265 284 . Parts 30 | . 17 13 . Haulers Intercepted . | . . . . Recyclers Shooed . | . . . . Parts Field Recycled . | . . . . Retrieved Matter . | . . . . Parts Self-Destructed . | . . . . Prevented . | . . . . Kills | -11 -10 -9 -9 ------- Run | Yrd Mat Mat Min Combat Hostiles Destroyed 13 | . 7 6 . Guns 11 | . 6 5 . AOE 2 | . 1 1 . Classes Destroyed 2 | . 2 . . Swarmer 3 | . 3 . . Grunt 10 | . 4 6 . Best Kill Streak 5 | . 5 2 . Combat Bots Only 5 | . 5 2 . Max Kills in Single Turn 1 | . 1 1 . Gunslinging . | . . . . Exploded 1 | . 1 1 . Melee . | . . . . Uniques/NPCs Destroyed . | . . . . Combat | -11 -10 -9 -9 -------- Run | Yrd Mat Mat Min Hostile Shots Fired 157 | . 22 68 67 Missed 47 | . 6 21 20 Damage Taken 1219 | . 196 656 367 Core 365 | . 64 118 183 Absorbed by Shields . | . . . . Regen/Repaired (Parts) 63 | . 63 . . Core Remaining (%) 87 | 100 74 . . Volleys Fired 50 | . 17 33 . Largest 2 | . 2 2 . Hottest 60 | . 60 60 . Shots Fired 88 | . 34 54 . Gun 88 | . 34 54 . Cannon . | . . . . Launcher . | . . . . Special . | . . . . Kinetic 50 | . 17 33 . Thermal . | . . . . Explosive . | . . . . Electromagnetic 38 | . 17 21 . Robot Hit Streak 9 | . 6 9 . Robot Miss Streak 3 | . 3 3 . Penetration Max . | . . . . Secondary Targets . | . . . . Shots Hit Robots 56 | . 19 37 . Core Hits 31 | . 11 18 2 Critical Kills . | . . . . Critical Parts Destroyed . | . . . . Critical Strikes . | . . . . Melee Attacks . | . . . . Impact . | . . . . Slashing . | . . . . Piercing . | . . . . Sneak Attacks . | . . . . Combat Hostiles . | . . . . Follow-up Attacks . | . . . . Damage Inflicted 735 | . 259 458 18 Guns 594 | . 206 388 . Cannons . | . . . . Explosions 123 | . 53 70 . Melee . | . . . . Ramming 18 | . . . 18 Kinetic 250 | . 58 192 . Thermal 123 | . 53 70 . Explosive . | . . . . Electromagnetic 344 | . 148 196 . Impact . | . . . . Slashing . | . . . . Piercing . | . . . . Highest Corruption . | . . . . Average Corruption . | . . . . Corruption Purged . | . . . . Corruption Blocked . | . . . . Overload Shots . | . . . . Overflow Damage . | . . . . Projectiles . | . . . . Explosions . | . . . . Melee . | . . . . Knockbacks . | . . . . Impact . | . . . . Kinetic . | . . . . Secondary . | . . . . Self-Inflicted Damage 16 | . 16 . . Shots 1 | . 1 . . Rammed . | . . . . Targets Rammed 18 | . . . 18 Kicked 18 | . . . 18 Crushed . | . . . . Highest Temperature 140 | . 140 20 . Average Temperature 47 | . 54 4 . Received Heat Transfer 426 | . 69 357 . Siege Activations . | . . . . Robots Corrupted . | . . . . Combat Hostiles . | . . . . Parts Fried 1 | . . 1 . Impact Corruptions . | . . . . Robots Melted . | . . . . Combat Hostiles . | . . . . Parts Melted . | . . . . Heat Transferred 150 | . 100 50 . Parts Sabotaged . | . . . . Parts Stolen . | . . . . Parts Stripped . | . . . . Power Chain Reactions 2 | . 1 1 . Alert | -11 -10 -9 -9 ------- Run | Yrd Mat Mat Min Peak Influence 200 | . 200 182 61 Initial 61 | . . 14 61 Average 95 | . 122 79 58 Maximum Alert Level 1 | . 1 . . Low Security (%) 93 | 100 88 100 100 Level 1 6 | . 11 . . Level 2 . | . . . . Level 3 . | . . . . Level 4 . | . . . . Level 5 . | . . . . High Security . | . . . . Max Security . | . . . . Squads Dispatched 2 | . 2 . . Investigation 1 | . 1 . . Extermination . | . . . . Reinforcement 1 | . 1 . . Assault . | . . . . Garrison . | . . . . Intercept . | . . . . Searches Triggered . | . . . . Construction Impeded . | . . . . Haulers Reinforced . | . . . . Active Scanning Responses . | . . . . Cargo Convoy Interrupts . | . . . . Stealth | -11 -10 -9 -9 --------- Run | Yrd Mat Mat Min Distress Signals 3 | . 1 2 . Communications Jammed . | . . . . Distress Signals . | . . . . Times Spotted 28 | . 11 14 3 Peak Tracking Total 7 | . 6 7 3 Tactical Retreats 1 | . . 1 . Traps | -11 -10 -9 -9 ------- Run | Yrd Mat Mat Min Traps Triggered 1 | . 1 . . Indirectly . | . . . . Trap Hack Attempts . | . . . . Triggered . | . . . . Disarmed . | . . . . Reprogrammed . | . . . . Reused . | . . . . Traps Extracted . | . . . . Installed . | . . . . Triggered . | . . . . Machines | -11 -10 -9 -9 ---------- Run | Yrd Mat Mat Min Machines Disabled . | . . . . Max in Single Turn . | . . . . Machines Repaired . | . . . . Machines Dismantled . | . . . . Machines Sabotaged . | . . . . Overloaded Fab Kills . | . . . . Hacking | -11 -10 -9 -9 --------- Run | Yrd Mat Mat Min Machines Accessed 9 | . 5 4 . Terminals 6 | . 3 3 . Fabricators . | . . . . Repair Stations 1 | . 1 . . Recycling Units 1 | . 1 . . Scanalyzers 1 | . . 1 . Garrison Access . | . . . . Total Hacks 39 | . 19 20 . Successful 27 | . 12 15 . Failed 12 | . 7 5 . Catastrophic . | . . . . Database Lockouts . | . . . . Manual 17 | . 11 6 . Terminals 20 | . 12 8 . Fabricators . | . . . . Repair Stations 6 | . 6 . . Recycling Units 1 | . 1 . . Scanalyzers 12 | . . 12 . Garrison Access . | . . . . Terminal Hacks 9 | . 5 4 . Prototype ID Bank 2 | . 1 1 . Emergency Access Points 1 | . 1 . . Locate Traps 2 | . 1 1 . Zone Layout 4 | . 2 2 . Fabricator Hacks . | . . . . Repair Station Hacks 6 | . 6 . . Scan Component 3 | . 3 . . Repair 3 | . 3 . . Recycling Unit Hacks 1 | . 1 . . Report Inventory 1 | . 1 . . Scanalyzer 11 | . . 11 . Insert Component 5 | . . 5 . Analyze 6 | . . 6 . Garrison Access Hacks . | . . . . Unauthorized Hacks . | . . . . Terminals . | . . . . Fabricators . | . . . . Repair Stations . | . . . . Recycling Units . | . . . . Scanalyzers . | . . . . Garrison Access . | . . . . Data Cores Recovered . | . . . . Used . | . . . . Hacking Detections 7 | . 3 4 . Full Trace Events . | . . . . Feedback Events . | . . . . Feedback Blocked . | . . . . Robot Schematics Acquired . | . . . . Robots Built . | . . . . Authchips . | . . . . Time . | . . . . Total Robot Build Rating . | . . . . Part Schematics Acquired 5 | . . 5 . Parts Built . | . . . . Authchips . | . . . . Time . | . . . . Total Part Build Rating . | . . . . Parts Repaired 3 | . 3 . . Time 102 | . 102 . . Parts Recycled . | . . . . Recycled Matter . | . . . . Retrieved Matter . | . . . . Retrieved Components . | . . . . Parts Scanalyzed 5 | . . 5 . Part Schematics Acquired 5 | . . 5 . Parts Damaged . | . . . . Bothacking | -11 -10 -9 -9 ------------ Run | Yrd Mat Mat Min Used RIF Installer . | . . . . Robots Hacked . | . . . . Non-combat . | . . . . Combat . | . . . . Robot Hacks Applied . | . . . . Relay Couplers Released . | . . . . Fabnet Peak Effective % . | . . . . Robots Rewired . | . . . . Allies Hacked . | . . . . Hacks Repelled . | . . . . Allies | -11 -10 -9 -9 -------- Run | Yrd Mat Mat Min Total Allies . | . . . . Largest Group . | . . . . Highest-Rated Group . | . . . . Highest-Rated Ally . | . . . . Total Orders . | . . . . Ally Attacks . | . . . . Total Damage . | . . . . Kills . | . . . . Allies Corrupted . | . . . . Allies Melted . | . . . . Intel | -11 -10 -9 -9 ------- Run | Yrd Mat Mat Min Robot Analysis Total . | . . . . Derelict Logs Recovered . | . . . . Drone Launches . | . . . . Drone Recoveries . | . . . . Exploration | -11 -10 -9 -9 ------------- Run | Yrd Mat Mat Min Turns Passed 960 | 61 516 294 89 Spaces Moved 512 | 43 283 157 29 Core 19 | 3 . 6 10 Treads . | . . . . Legs 493 | 40 283 151 19 Wheels . | . . . . Hover . | . . . . Flight . | . . . . Fastest Speed 50 | 50 120 120 100 Average Speed 122 | 116 120 122 151 Slowest Speed 200 | 120 120 200 190 Overloaded Moves . | . . . . Propulsion Burnouts . | . . . . Robots Hopped . | . . . . Cave-ins Triggered . | . . . . Exploration Rate (%) 18 | 3 39 16 14 Regions Visited 3 Branch Regions 1 Pre-discovered Areas . | . . . . Known Exits Taken 1 | . . 1 . Unknown Exits Taken 2 | 1 1 . . Scrap Searched . | . . . . Spaces Dug . | . . . . Terrain Destroyed 1 | . 1 . . Melee . | . . . . Projectile . | . . . . AOE 1 | . 1 . . Terrain Rammed . | . . . . Walls Destroyed . | . . . . Machines Disabled . | . . . . Actions | -11 -10 -9 -9 --------- Run | Yrd Mat Mat Min Total 751 | 51 430 212 58 Wait 136 | . 114 15 7 Move 509 | 42 282 156 29 Hop . | . . . . Pick Up 15 | 3 10 2 . Fast Attach 8 | 6 2 . . Attach 7 | . . 4 3 Detach 2 | . . 1 1 Swap 1 | . 1 . . Drop 5 | . 4 1 . Fire 50 | . 17 33 . Melee . | . . . . Ram . | . . . . Kick 18 | . . . 18 Crush . | . . . . Escape Stasis . | . . . . Rewire . | . . . . Trap . | . . . . Miscellaneous . | . . . . Route ------- -11/Scrapyard -10/Materials -9/Materials -9/Mines History --------- Turn | Location | Event 6 | -11/Scrapyard | Discovered new exit (range 16) 62 | -11/Scrapyard | Entered Materials 286 | -10/Materials | Discovered new exit (range 16) 335 | -10/Materials | Build established: Mutant 400 | -10/Materials | Repaired EM Pulse Gun 440 | -10/Materials | Repaired Lgt. Nuclear Core 479 | -10/Materials | Repaired Lgt. Nuclear Core 578 | -10/Materials | Entered another Materials area 578 | -9/Materials | Evolved 2 slots: Utility x2 725 | -9/Materials | Discovered new exit (range 14) 767 | -9/Materials | Identified exit to Mines 872 | -9/Materials | Entered Mines 888 | -9/Mines | Met a Derelict bent on vengeance 896 | -9/Mines | Lost 6 parts (1p2n1u2w) 919 | -9/Mines | Core integrity fell below 50% 961 | -9/Mines | Self-destructed Last Messages --------------- 00871_ K-01 Serf cleans the Terminal. 00872_ K-01 Serf collects debris. LOCATION=MINES GOAL=ESCAPE 00873_ K-01 Serf collects debris. 00880_ K-01 Serf cleans the Plasma Injector. 00886_ K-01 Serf collects debris. 00900_ Kicked S-10 Pest. 00913_ Kicked S-10 Pest out of the way. 00915_ Kicked S-10 Pest. 00923_ Kicked S-10 Pest out of the way. 00925_ Kicked S-10 Pest. 00930_ Kicked S-10 Pest out of the way. 00932_ Kicked T-07 Excavator out of the way. 00947_ Lgt. Nuclear Core destroyed. 00950_ K-01 Serf collects debris. 00950_ Aluminum Leg destroyed. 00950_ T-07 Excavator is excavating. 00956_ U-05 Engineer lays Concrete. 00958_ T-07 Excavator is excavating. Map ----- +----------------------------------------------------+ | ???????????????????????????????????????? | | ????????????????????????? ???????????? | | ????????????????????????? ??????????? | | ????????????????????????? ??????????? | | ????????????????????????# ??????????? | | ????????????????????????# ???????????? | | ????????????????????????# ???????????? | | ???????????????????????? #???????????? | | ????????????????????????# #???????????? | | ????????????????????????# #???????????? | | ????????????????????????# #???????????? | | ???????????????????????## #???????????? | | ??????????????????????## #???????????? | | ?????????????????????## ##??????????? | | ???????????????####### ####???????? | | ???????????#???# ####????? | | ???????????? ??# #???? | | ????????????# ## ######## ####### #???? | | ????????????# #??????# #???????????? | | ????????????#### #??????#%#???????????? | | ???????????????# #??????#%#???????????? | | ???????????????# #??????#%#???????????? | | ???????????????# ##?????#%#???????????? | | ???????????????# ##????# #???????????? | | ??????????????## ###### #######?????? | | ??????????????#@ t ## #?????? | | ??????????????# ### #?????? | | ??????????????######?# """ #?????? | | ?????????????????????# """ #?????? | | ?????????????????????# """ #?????? | | ?????????????????????# #?????? | | ?????????????????????# """ """ #?????? | | ?????????????????????# """ """ #?????? | | ?????????????????????# """ """ #?????? | | ?????????????????????# #?????? | | ?????????????????????#############?????? | | ???????????????????????????????????????? | | ???????????????????????????????????????? | | ???????????????????????????????????????? | | ???????????????????????????????????????? | | ???????????????????????????????????????? | | ???????????????????????????????????????? | | ???????????????????????????????????????? | | ???????????????????????????????????????? | | | | | | | | | | | | | +----------------------------------------------------+ Best States ------------- Heat Dissipation 42 Energy Generation 14 Energy Capacity 250 Matter Stores 300 Matter Capacity 300 Sight Range 16 Terrain Scan Density 10 Evasion (%) 55 Targeting Accuracy 5 Item Schematics ----------------- Cld. Ion Engine | -9/Materials | Scanalyzed Aluminum Leg | -9/Materials | Scanalyzed Imp. Heat Sink | -9/Materials | Scanalyzed Lgt. Nuclear Core | -9/Materials | Scanalyzed EM Pulse Gun | -9/Materials | Scanalyzed Robot Schematics ------------------ None Fabricated ------------ Nothing Alien Tech Used ----------------- None Achievements -------------- None Challenges ------------ None Game ------ Seed LayeredLightpackCorpse Manual? 0 Play Time 00:15:21 Cumulative 36.0 hours Start 2024.04.12 @ 02:36:30 End 2024.04.12 @ 02:51:12 Sessions 1 Manual Loads 0 Difficulty Rogue Special Mode None Game No. 49 Rogue 49 Adventurer 0 Explorer 0 Win Type - Total 0 Types 0/0/0/0/0/0/0/0/0 Lore% 17 Gallery% 28 Achievement% 8 Wizard Run 0 Options --------- Layout 1 ASCII 0 Keyboard 0 Movement Numpad Keybinds 0 Fullscreen 1 Font 24/Smallcaps Map View 50x35 Zoom Use 0% Tactical HUD 1 Map Filters NONE Filters NONE Steam 1 RUN: 4fabbccf-57a7-409b-ac2f-ef5b7bd12e28